[Event "FIDE Open World Rapid 2024"]
[Site "New York"]
[Date "2024.12.27"]
[Round "6.36"]
[White "Ghosh, Diptayan"]
[Black "Volokitin, Andrei"]
[Result "1-0"]
[ECO "D04"]
[WhiteElo "2569"]
[BlackElo "2649"]
[Annotator "ChessBase"]
[PlyCount "125"]
[EventDate "2024.12.14"]
[EventType "swiss"]
[EventCountry "USA"]
[SourceTitle "playchess.com"]
[Source "ChessBase"]
[SourceQuality "1"]
[TimeControl "900+10"]

1. d4 {[%emt 0:00:03]} Nf6 {[%emt 0:00:02]} 2. Nf3 {[%emt 0:00:02]} d5 {[%emt 0:00:04]} 3. e3 {[%emt 0:00:02]} c5 {[%emt 0:00:45]} 4. Be2 {[%emt 0:00:03]} Nc6 {[%emt 0:00:09]} 5. O-O {[%emt 0:00:03]} Bg4 {[%emt 0:00:28]} 6. h3 {[%emt 0:00:17]} Bxf3 {[%emt 0:00:24]} 7. Bxf3 {[%emt 0:00:02]} cxd4 {[%emt 0:00:29]} 8. exd4 {[%emt 0:00:03]} e6 {[%emt 0:00:01]} 9. c3 {[%emt 0:00:09]} Bd6 {[%emt 0:00:09]} 10. Nd2 {[%emt 0:00:19]} b5 {[%emt 0:06:13]} 11. Be2 {[%emt 0:02:31]} Qb6 {[%emt 0:03:09]} 12. Nf3 {[%emt 0:06:02]} O-O {[%emt 0:01:08]} 13. Be3 {[%emt 0:02:22]} Rab8 {[%emt 0:01:53]} 14. Bd3 {[%emt 0:00:40]} b4 {[%emt 0:00:30]} 15. c4 {[%emt 0:01:21]} dxc4 {[%emt 0:00:09]} 16. Bxc4 {[%emt 0:00:01]} Qa5 {[%emt 0:01:19]} 17. Rc1 {[%emt 0:00:21]} Ne7 {[%emt 0:00:36]} 18. Re1 {[%emt 0:00:28]} Rbc8 {[%emt 0:00:25]} 19. Bg5 {[%emt 0:00:53]} Ned5 {[%emt 0:00:11]} 20. Ne5 {[%emt 0:00:04]} h6 {[%emt 0:00:05]} 21. Bxf6 {[%emt 0:00:28]} Nxf6 {[%emt 0:00:06]} 22. Nxf7 {[%emt 0:00:28]} Rxf7 {[%emt 0:00:05]} 23. Bxe6 {[%emt 0:00:02]} Rcf8 {[%emt 0:00:04]} 24. Rc6 {[%emt 0:00:24]} Bb8 {[%emt 0:00:29]} 25. Qb3 {[%emt 0:00:12]} Qd8 {[%emt 0:00:07]} 26. Bxf7+ {[%emt 0:00:19]} Rxf7 {[%emt 0:00:02]} 27. Qe6 {[%emt 0:00:05]} Nd7 {[%emt 0:00:16]} 28. Re3 {[%emt 0:00:46]} Nf8 {[%emt 0:00:18]} 29. Qc4 {[%emt 0:00:02]} Qd7 {[%emt 0:00:06]} 30. Rf3 {[%emt 0:00:09]} Qe8 {[%emt 0:00:14]} 31. g3 {[%emt 0:00:15]} Qe7 {[%emt 0:00:12]} 32. Kg2 {[%emt 0:00:17]} a5 {[%emt 0:00:06]} 33. Ra6 {[%emt 0:00:18]} Qb7 {[%emt 0:00:07]} 34. Qxf7+ {[%emt 0:00:26]} Qxf7 {[%emt 0:00:01]} 35. Rxf7 {[%emt 0:00:01]} Kxf7 {[%emt 0:00:01]} 36. Rxa5 {[%emt 0:00:01]} Ke6 {[%emt 0:00:32]} 37. Kf3 {[%emt 0:00:01]} Nd7 {[%emt 0:00:04]} 38. a4 {[%emt 0:00:12]} bxa3 {[%emt 0:00:04]} 39. bxa3 {[%emt 0:00:01]} Bc7 {[%emt 0:00:11]} 40. Rb5 {[%emt 0:00:07]} Nb6 {[%emt 0:00:11]} 41. Ke4 {[%emt 0:00:14]} Nc4 {[%emt 0:00:07]} 42. Rc5 {[%emt 0:00:02]} Nd6+ {[%emt 0:00:04]} 43. Kd3 {[%emt 0:00:02]} Bb6 {[%emt 0:00:28]} 44. Rc6 {[%emt 0:00:17]} Bd8 {[%emt 0:00:03]} 45. a4 {[%emt 0:00:05]} Kd7 {[%emt 0:00:04]} 46. Rc5 {[%emt 0:00:09]} Bb6 {[%emt 0:00:09]} 47. Re5 {[%emt 0:00:02]} Nf7 {[%emt 0:00:14]} 48. Rb5 {[%emt 0:00:09]} Kc6 {[%emt 0:00:05]} 49. f4 {[%emt 0:00:13]} Nd6 {[%emt 0:00:15]} 50. Re5 {[%emt 0:00:01]} Bd8 {[%emt 0:00:03]} 51. a5 {[%emt 0:00:16]} Nf7 {[%emt 0:00:22]} 52. Rc5+ {[%emt 0:00:03]} Kb7 {[%emt 0:00:01]} 53. Ke4 {[%emt 0:00:13]} Ka6 {[%emt 0:00:23]} 54. Kf5 {[%emt 0:00:12]} Bf6 {[%emt 0:00:02]} 55. Rd5 {[%emt 0:00:58]} Nd8 {[%emt 0:00:18]} 56. g4 {[%emt 0:00:24]} Nb7 {[%emt 0:00:15]} 57. g5 {[%emt 0:00:11]} hxg5 {[%emt 0:00:02]} 58. fxg5 {[%emt 0:00:01]} Bd8 {[%emt 0:00:18]} 59. Kg6 {[%emt 0:00:17]} Bxa5 {[%emt 0:00:07]} 60. Kxg7 {[%emt 0:00:03]} Bc3 {[%emt 0:00:06]} 61. Kf7 {[%emt 0:00:08]} Kb6 {[%emt 0:00:01]} 62. g6 {[%emt 0:00:05]} Kc6 {[%emt 0:00:01]} 63. Ke6 {[%emt 0:00:04]} 1-0

[Event "FIDE Open World Rapid 2024"]
[Site "New York"]
[Date "2024.12.27"]
[Round "6.36"]
[White "Larrea, Manuel"]
[Black "Andersen, Mads"]
[Result "0-1"]
[ECO "B84"]
[WhiteElo "2259"]
[BlackElo "2592"]
[Annotator "ChessBase"]
[PlyCount "58"]
[EventDate "2024.12.14"]
[EventType "swiss"]
[EventCountry "USA"]
[SourceTitle "playchess.com"]
[Source "ChessBase"]
[SourceQuality "1"]
[TimeControl "900+10"]

1. e4 {[%emt 0:00:01]} c5 {[%emt 0:00:02]} 2. Nf3 {[%emt 0:00:02]} d6 {[%emt 0:00:01]} 3. d4 {[%emt 0:00:02]} cxd4 {[%emt 0:00:02]} 4. Nxd4 {[%emt 0:00:01]} Nf6 {[%emt 0:00:02]} 5. Nc3 {[%emt 0:00:01]} a6 {[%emt 0:00:01]} 6. Be2 {[%emt 0:00:02]} e6 {[%emt 0:00:02]} 7. O-O {[%emt 0:00:06]} Be7 {[%emt 0:00:03]} 8. Be3 {[%emt 0:00:06]} Qc7 {[%emt 0:00:09]} 9. f4 {[%emt 0:00:22]} O-O {[%emt 0:00:17]} 10. Qe1 {[%emt 0:01:29]} b5 {[%emt 0:00:14]} 11. Bf3 {[%emt 0:00:03]} Bb7 {[%emt 0:00:10]} 12. a3 {[%emt 0:00:04]} Nbd7 {[%emt 0:01:03]} 13. Rd1 {[%emt 0:01:26]} Nc5 {[%emt 0:02:03]} 14. Bf2 {[%emt 0:00:54]} Rac8 {[%emt 0:00:52]} 15. e5 {[%emt 0:03:00]} dxe5 {[%emt 0:00:14]} 16. fxe5 {[%emt 0:00:02]} Nfd7 {[%emt 0:00:11]} 17. Bg3 {[%emt 0:00:41]} Nb6 {[%emt 0:01:02]} 18. Bxb7 {[%emt 0:00:47]} Qxb7 {[%emt 0:00:11]} 19. b4 {[%emt 0:00:24]} Ncd7 {[%emt 0:02:46]} 20. Ne4 {[%emt 0:00:11]} Nc4 {[%emt 0:00:20]} 21. Nf3 {[%emt 0:04:41]} Nxa3 {[%emt 0:01:08]} 22. c3 {[%emt 0:00:26]} Nc4 {[%emt 0:00:10]} 23. Rd4 {[%emt 0:00:48]} Rcd8 {[%emt 0:01:05]} 24. Qe2 {[%emt 0:00:35]} Ndb6 {[%emt 0:01:11]} 25. Nf6+ {[%emt 0:00:17]} gxf6 {[%emt 0:01:00]} 26. Rg4+ {[%emt 0:01:18]} Kh8 {[%emt 0:00:01]} 27. exf6 {[%emt 0:00:02]} Bxf6 {[%emt 0:00:18]} 28. Ne5 {[%emt 0:00:11]} Rd2 {[%emt 0:00:24]} 29. Bh4 {[%emt 0:01:23]} Bxh4 {[%emt 0:01:36]} 0-1

[Event "FIDE Open World Rapid 2024"]
[Site "New York"]
[Date "2024.12.27"]
[Round "6.37"]
[White "Grebnev, Aleksey"]
[Black "Le, Quang Liem"]
[Result "1/2-1/2"]
[ECO "D35"]
[WhiteElo "2555"]
[BlackElo "2739"]
[Annotator "TA"]
[PlyCount "94"]
[EventDate "2024.12.14"]
[EventType "swiss"]
[EventCountry "USA"]
[SourceTitle "playchess.com"]
[Source "ChessBase"]
[SourceQuality "1"]
[TimeControl "900+10"]

{[%evp 15,94,14,16,15,18,18,32,21,25,13,26,27,26,12,14,8,35,22,38,47,39,6,31,34,38,16,30,-4,-4,-4,-13,-8,0,0,0,-7,-6,-31,0,-21,-29,0,-9,-10,-11,-8,0,0,0,0,0,0,0,0,0,0,0,0,0,0,0,0,0,-14,0,0,0,0,0,0,0,0,0,0,0,0,0,0,0,0,0]} 1. d4 {[%emt 0:00:03]} Nf6 {[%emt 0:00:03]} 2. c4 {[%emt 0:00:02]} e6 {[%emt 0:00:01]} 3. Nc3 {[%emt 0:00:02]} d5 {[%emt 0:00:02]} 4. cxd5 {[%emt 0:00:01]} exd5 {[%emt 0:00:02]} 5. Bg5 {[%emt 0:00:03]} c6 {[%emt 0:00:01]} 6. e3 {[%emt 0:00:01]} h6 {[%emt 0:00:02]} 7. Bh4 {[%emt 0:00:03]} Be7 {[%emt 0:00:03]} 8. Bd3 {[%emt 0:00:02]} O-O {[%emt 0:00:03]} 9. Nge2 {[%emt 0:00:02]} Re8 {[%emt 0:00:03]} 10. O-O {[%emt 0:00:03]} a5 {[%emt 0:00:02]} 11. Rc1 {[%emt 0:00:02]} Nbd7 {[%emt 0:00:12]} 12. h3 {[%emt 0:00:09]} Nh5 {[%emt 0:03:17]} 13. Bxe7 {[%emt 0:00:02]} Qxe7 {[%emt 0:00:16]} 14. Qd2 {[%emt 0:00:07]} Nb6 {[%emt 0:00:51]} 15. Rfe1 {[%emt 0:00:12]} a4 {[%emt 0:01:43]} 16. Nf4 {[%emt 0:00:26]} Qg5 {[%emt 0:01:26]} 17. Nxh5 {[%emt 0:01:13]} Qxh5 {[%emt 0:00:02]} 18. e4 {[%emt 0:02:42]} Be6 {[%emt 0:02:07]} 19. e5 {[%emt 0:00:15]} Nc4 {[%emt 0:00:09]} 20. Bxc4 {[%emt 0:00:41]} dxc4 {[%emt 0:00:03]} 21. Ne4 {[%emt 0:00:22]} a3 {[%emt 0:00:23]} 22. Nd6 {[%emt 0:00:42][%csl LRb7,LRc4,LRe8]} Red8 {[%emt 0:01:06]} 23. bxa3 {[%emt 0:01:54]} ({But not} 23. Nxc4 axb2 24. Qxb2 b5 $17) (23. Nxb7 Rdb8 24. Nc5 (24. Qb4 $2 Ra7 $19) 24... axb2 $17 (24... Rxb2 $2 25. Rc2 $19)) 23... Rxa3 {[%emt 0:00:14]} 24. Nxc4 {[%emt 0:01:05]} (24. Nxb7 Rd3 25. Qe2 Qxe2 26. Rxe2 R8xd4 $16) 24... Ra4 {[%emt 0:00:24]} 25. Nd6 {[%emt 0:01:36]} Rxa2 {[%emt 0:00:05]} 26. Qf4 {[%emt 0:00:06]} Rb2 {[%emt 0:02:11][%cal Ba2b2,Bb2b4,Bb4d4][%mdl 32]} 27. Rc3 {[%emt 0:03:20]} Qg5 {[%emt 0:00:20] Inhibits Rg3.} 28. Qxg5 {[%emt 0:00:01]} hxg5 {[%emt 0:00:02]} 29. Ra1 {[%emt 0:00:01]} Rb4 {[%emt 0:00:52]} 30. Ra7 {[%emt 0:00:16]} Rxd4 {[%emt 0:00:47]} 31. Rxb7 {[%emt 0:01:16]} Rd1+ {[%emt 0:00:03]} 32. Kh2 {[%emt 0:00:04][%cal Oc3f3]} Re1 {[%emt 0:00:05]} 33. Re3 {[%emt 0:00:57]} Rxe3 {[%emt 0:01:34]} 34. fxe3 {[%emt 0:00:01]} Rd7 {[%emt 0:00:29]} 35. Rxd7 {[%emt 0:01:38]} Bxd7 $11 {[%emt 0:00:02][%mdl 4096] Endgame KB-KN} 36. Ne4 {[%emt 0:00:01][%cal Oh2g3]} Kh7 {[%emt 0:00:48]} 37. Nc5 {[%emt 0:00:03]} Bc8 {[%emt 0:00:04]} 38. Kg3 {[%emt 0:00:06]} Kg6 {[%emt 0:00:38] and ...Kf5 would now be decisive} 39. e4 {[%emt 0:00:01]} f5 {[%emt 0:00:03]} 40. Kf3 {[%emt 0:00:29]} f4 {[%emt 0:00:07]} 41. g3 {[%emt 0:00:46]} (41. e6 $5 Kf6 $8 42. e5+ Ke7 43. Kg4 $11) 41... Bxh3 {[%emt 0:00:20]} 42. gxf4 {[%emt 0:00:01]} gxf4 {[%emt 0:00:02]} 43. Kxf4 {[%emt 0:00:01]} Kf7 {[%emt 0:00:02]} 44. Kg5 {[%emt 0:00:10]} Bc8 {[%emt 0:00:10]} 45. Kh5 {[%emt 0:00:13]} Be6 {[%emt 0:00:29]} 46. Kg5 {[%emt 0:00:03]} Bc8 {[%emt 0:00:11]} 47. Kh5 {[%emt 0:00:04]} Be6 {[%emt 0:00:08]} 1/2-1/2

[Event "FIDE Open World Rapid 2024"]
[Site "New York"]
[Date "2024.12.27"]
[Round "6.37"]
[White "Soo, Kai Jie"]
[Black "Erenburg, Sergey"]
[Result "0-1"]
[ECO "E04"]
[WhiteElo "2153"]
[BlackElo "2510"]
[Annotator "ChessBase"]
[PlyCount "42"]
[EventDate "2024.12.14"]
[EventType "swiss"]
[EventCountry "USA"]
[SourceTitle "playchess.com"]
[Source "ChessBase"]
[SourceQuality "1"]
[TimeControl "900+10"]

1. d4 {[%emt 0:00:03]} d5 {[%emt 0:00:01]} 2. c4 {[%emt 0:00:00]} e6 {[%emt 0:00:01]} 3. Nf3 {[%emt 0:00:01]} Nf6 {[%emt 0:00:03]} 4. g3 {[%emt 0:00:01]} dxc4 {[%emt 0:00:03]} 5. Bg2 {[%emt 0:00:01]} c6 {[%emt 0:00:01]} 6. Ne5 {[%emt 0:00:03]} Bb4+ {[%emt 0:00:04]} 7. Bd2 {[%emt 0:00:06]} Be7 {[%emt 0:00:15]} 8. Bc3 {[%emt 0:00:25]} b5 {[%emt 0:00:54]} 9. Nxc6 {[%emt 0:00:22]} Nxc6 {[%emt 0:00:02]} 10. Bxc6+ {[%emt 0:00:01]} Bd7 {[%emt 0:00:02]} 11. Bxa8 {[%emt 0:00:12]} Qxa8 {[%emt 0:00:02]} 12. f3 {[%emt 0:00:24]} h5 {[%emt 0:02:54]} 13. a3 {[%emt 0:02:27]} h4 {[%emt 0:00:17]} 14. Kf2 {[%emt 0:00:02]} hxg3+ {[%emt 0:00:11]} 15. Kg1 {[%emt 0:00:49]} Ng4 {[%emt 0:00:54]} 16. h3 {[%emt 0:01:23]} g2 {[%emt 0:05:28]} 17. Rh2 {[%emt 0:00:06]} Nxh2 {[%emt 0:00:06]} 18. Kxh2 {[%emt 0:00:06]} Qd5 {[%emt 0:00:50]} 19. Qg1 {[%emt 0:02:07]} e5 {[%emt 0:01:13]} 20. Nd2 {[%emt 0:00:25]} exd4 {[%emt 0:01:45]} 21. Bxd4 {[%emt 0:00:59]} Bd6+ {[%emt 0:00:18]} 0-1

[Event "FIDE Open World Rapid 2024"]
[Site "New York"]
[Date "2024.12.27"]
[Round "6.38"]
[White "Oparin, Grigoriy"]
[Black "Zemlyanskii, Ivan"]
[Result "0-1"]
[ECO "D70"]
[WhiteElo "2653"]
[BlackElo "2543"]
[Annotator "ChessBase"]
[PlyCount "122"]
[EventDate "2024.12.14"]
[EventType "swiss"]
[EventCountry "USA"]
[SourceTitle "playchess.com"]
[Source "ChessBase"]
[SourceQuality "1"]
[TimeControl "900+10"]

1. d4 {[%emt 0:00:02]} Nf6 {[%emt 0:00:01]} 2. c4 {[%emt 0:00:01]} g6 {[%emt 0:00:01]} 3. f3 {[%emt 0:00:03]} d5 {[%emt 0:00:13]} 4. cxd5 {[%emt 0:00:04]} Nxd5 {[%emt 0:00:01]} 5. e4 {[%emt 0:00:03]} Nb6 {[%emt 0:00:01]} 6. Nc3 {[%emt 0:00:05]} Bg7 {[%emt 0:00:02]} 7. Be3 {[%emt 0:00:01]} O-O {[%emt 0:00:04]} 8. Qd2 {[%emt 0:00:13]} e5 {[%emt 0:00:01]} 9. d5 {[%emt 0:00:22]} c6 {[%emt 0:00:01]} 10. h4 {[%emt 0:00:08]} cxd5 {[%emt 0:00:02]} 11. exd5 {[%emt 0:00:02]} N8d7 {[%emt 0:00:01]} 12. h5 {[%emt 0:00:15]} Nf6 {[%emt 0:00:02]} 13. hxg6 {[%emt 0:00:09]} fxg6 {[%emt 0:00:03]} 14. O-O-O {[%emt 0:01:08]} Bd7 {[%emt 0:00:06]} 15. Kb1 {[%emt 0:01:10]} Rc8 {[%emt 0:04:36]} 16. d6 {[%emt 0:00:22]} e4 {[%emt 0:00:02]} 17. fxe4 {[%emt 0:00:17]} Ng4 {[%emt 0:00:01]} 18. Bg5 {[%emt 0:00:45]} Qe8 {[%emt 0:00:01]} 19. Nf3 {[%emt 0:00:59]} Rf7 {[%emt 0:00:35]} 20. Qe1 {[%emt 0:00:33]} Rxc3 {[%emt 0:05:28]} 21. bxc3 {[%emt 0:00:02]} Na4 {[%emt 0:00:04]} 22. Rd4 {[%emt 0:03:01]} b5 {[%emt 0:03:30]} 23. Bd2 {[%emt 0:01:22]} Qc8 {[%emt 0:01:14]} 24. e5 {[%emt 0:00:57]} Nc5 {[%emt 0:01:15]} 25. Rxg4 {[%emt 0:02:15]} Bxg4 {[%emt 0:00:09]} 26. Nd4 {[%emt 0:00:01]} Qe8 {[%emt 0:00:56]} 27. Be2 {[%emt 0:04:50]} Bxe2 {[%emt 0:00:34]} 28. Qxe2 {[%emt 0:00:01]} Qxe5 {[%emt 0:00:13]} 29. Qxe5 {[%emt 0:00:23]} Bxe5 {[%emt 0:00:01]} 30. Kc2 {[%emt 0:00:05]} a6 {[%emt 0:00:15]} 31. Nf3 {[%emt 0:00:27]} Bxd6 {[%emt 0:00:03]} 32. Rd1 {[%emt 0:00:08]} Re7 {[%emt 0:00:10]} 33. Nd4 {[%emt 0:00:12]} Re4 {[%emt 0:00:20]} 34. Bh6 {[%emt 0:00:11]} Rg4 {[%emt 0:00:22]} 35. Rd2 {[%emt 0:00:09]} Ne4 {[%emt 0:00:06]} 36. Re2 {[%emt 0:00:03]} Kf7 {[%emt 0:00:15]} 37. Nf3 {[%emt 0:00:13]} Kf6 {[%emt 0:00:03]} 38. Be3 {[%emt 0:00:07]} Bc5 {[%emt 0:00:22]} 39. Bd4+ {[%emt 0:00:13]} Bxd4 {[%emt 0:00:12]} 40. cxd4 {[%emt 0:00:02]} Kf5 {[%emt 0:00:12]} 41. Kd3 {[%emt 0:00:07]} h5 {[%emt 0:00:08]} 42. Rc2 {[%emt 0:00:23]} Kf4 {[%emt 0:00:11]} 43. Rc8 {[%emt 0:00:12]} Kg3 {[%emt 0:00:12]} 44. Ne5 {[%emt 0:00:05]} Nf2+ {[%emt 0:00:03]} 45. Kc3 {[%emt 0:00:07]} Rg5 {[%emt 0:00:20]} 46. Rc6 {[%emt 0:00:14]} a5 {[%emt 0:00:02]} 47. Rxg6 {[%emt 0:00:11]} Rxg6 {[%emt 0:00:13]} 48. Nxg6 {[%emt 0:00:03]} Ne4+ {[%emt 0:00:00]} 49. Kd3 {[%emt 0:00:02]} Nf6 {[%emt 0:00:02]} 50. Ke3 {[%emt 0:00:30]} Kxg2 {[%emt 0:00:20]} 51. Nf4+ {[%emt 0:00:05]} Kg3 {[%emt 0:00:03]} 52. d5 {[%emt 0:00:01]} h4 {[%emt 0:00:25]} 53. d6 {[%emt 0:00:01]} Kg4 {[%emt 0:00:11]} 54. Nd3 {[%emt 0:00:26]} b4 {[%emt 0:00:10]} 55. Kd4 {[%emt 0:00:14]} Kg3 {[%emt 0:00:09]} 56. Ke5 {[%emt 0:00:09]} Nd7+ {[%emt 0:00:02]} 57. Ke6 {[%emt 0:00:04]} Nb6 {[%emt 0:00:01]} 58. Ne5 {[%emt 0:00:19]} h3 {[%emt 0:00:03]} 59. Nc4 {[%emt 0:00:01]} h2 {[%emt 0:00:19]} 60. Nxb6 {[%emt 0:00:02]} h1=Q {[%emt 0:00:02]} 61. Nc8 {[%emt 0:00:28]} Qh3+ {[%emt 0:00:03]} 0-1

[Event "FIDE Open World Rapid 2024"]
[Site "New York"]
[Date "2024.12.27"]
[Round "6.38"]
[White "Ahmed, Nidal"]
[Black "Gagunashvili, Merab"]
[Result "0-1"]
[ECO "B91"]
[WhiteElo "1796"]
[BlackElo "2541"]
[Annotator "ChessBase"]
[PlyCount "70"]
[EventDate "2024.12.14"]
[EventType "swiss"]
[EventCountry "USA"]
[SourceTitle "playchess.com"]
[Source "ChessBase"]
[SourceQuality "1"]
[TimeControl "900+10"]

1. e4 {[%emt 0:11:16]} d6 {[%emt 0:00:01]} 2. Nc3 {[%emt 0:00:03]} g6 {[%emt 0:00:02]} 3. g3 {[%emt 0:00:00]} Bg7 {[%emt 0:00:01]} 4. Bg2 {[%emt 0:00:01]} Nf6 {[%emt 0:00:02]} 5. Nge2 {[%emt 0:00:02]} O-O {[%emt 0:00:03]} 6. O-O {[%emt 0:00:01]} c5 {[%emt 0:00:02]} 7. d4 {[%emt 0:00:12]} cxd4 {[%emt 0:00:01]} 8. Nxd4 {[%emt 0:00:01]} a6 {[%emt 0:00:01]} 9. h3 {[%emt 0:00:08]} Bd7 {[%emt 0:00:13]} 10. Be3 {[%emt 0:00:04]} Nc6 {[%emt 0:00:01]} 11. Nd5 {[%emt 0:00:19]} Nxd5 {[%emt 0:00:05]} 12. exd5 {[%emt 0:00:02]} Ne5 {[%emt 0:00:01]} 13. c3 {[%emt 0:00:44]} Rc8 {[%emt 0:00:26]} 14. b3 {[%emt 0:00:30]} Qa5 {[%emt 0:04:27]} 15. c4 {[%emt 0:01:28]} b5 {[%emt 0:00:08]} 16. cxb5 {[%emt 0:00:54]} Bxb5 {[%emt 0:00:40]} 17. Nxb5 {[%emt 0:00:06]} axb5 {[%emt 0:00:10]} 18. Qe2 {[%emt 0:00:04]} Rc7 {[%emt 0:00:26]} 19. Rac1 {[%emt 0:00:17]} Rfc8 {[%emt 0:00:02]} 20. Rxc7 {[%emt 0:00:02]} Rxc7 {[%emt 0:00:01]} 21. Rc1 {[%emt 0:00:07]} Rxc1+ {[%emt 0:00:56]} 22. Bxc1 {[%emt 0:00:02]} Qc3 {[%emt 0:01:14]} 23. Be3 {[%emt 0:00:17]} b4 {[%emt 0:00:10]} 24. Qd2 {[%emt 0:00:20]} Nd3 {[%emt 0:01:17]} 25. Bf1 {[%emt 0:00:13]} Ne1 {[%emt 0:00:15]} 26. Qxc3 {[%emt 0:00:35]} bxc3 {[%emt 0:00:07]} 27. Bc1 {[%emt 0:00:04]} Nc2 {[%emt 0:00:54]} 28. a4 {[%emt 0:00:26]} Nb4 {[%emt 0:00:24]} 29. a5 {[%emt 0:00:17]} Nxd5 {[%emt 0:00:15]} 30. a6 {[%emt 0:00:06]} Bd4 {[%emt 0:00:02]} 31. Bg2 {[%emt 0:00:13]} Nb4 {[%emt 0:00:06]} 32. Bf1 {[%emt 0:00:12]} Kg7 {[%emt 0:00:09]} 33. Be2 {[%emt 0:00:12]} Na2 {[%emt 0:00:07]} 34. Be3 {[%emt 0:00:24]} Bxe3 {[%emt 0:00:02]} 35. fxe3 {[%emt 0:00:01]} c2 {[%emt 0:00:01]} 0-1

[Event "FIDE Open World Rapid 2024"]
[Site "New York"]
[Date "2024.12.27"]
[Round "6.39"]
[White "Ivanchuk, Vasyl"]
[Black "Khanin, Semen"]
[Result "1/2-1/2"]
[ECO "C84"]
[WhiteElo "2630"]
[BlackElo "2568"]
[Annotator "ChessBase"]
[PlyCount "64"]
[EventDate "2024.12.14"]
[EventType "swiss"]
[EventCountry "USA"]
[SourceTitle "playchess.com"]
[Source "ChessBase"]
[SourceQuality "1"]
[TimeControl "900+10"]

1. e4 {[%emt 0:01:22]} e5 {[%emt 0:00:01]} 2. Nf3 {[%emt 0:00:01]} Nc6 {[%emt 0:00:02]} 3. Bb5 {[%emt 0:00:02]} a6 {[%emt 0:00:02]} 4. Ba4 {[%emt 0:00:01]} Nf6 {[%emt 0:00:02]} 5. O-O {[%emt 0:00:01]} Be7 {[%emt 0:00:02]} 6. d3 {[%emt 0:00:02]} b5 {[%emt 0:00:05]} 7. Bb3 {[%emt 0:00:01]} d6 {[%emt 0:00:01]} 8. a3 {[%emt 0:00:13]} a5 {[%emt 0:00:02]} 9. h3 {[%emt 0:00:42]} a4 {[%emt 0:00:12]} 10. Ba2 {[%emt 0:00:01]} O-O {[%emt 0:00:06]} 11. Be3 {[%emt 0:00:08]} d5 {[%emt 0:00:15]} 12. exd5 {[%emt 0:01:23]} Nxd5 {[%emt 0:00:21]} 13. Bxd5 {[%emt 0:00:01]} Qxd5 {[%emt 0:00:01]} 14. Nc3 {[%emt 0:00:01]} Qe6 {[%emt 0:00:11]} 15. Nxb5 {[%emt 0:00:02]} Rb8 {[%emt 0:00:17]} 16. c4 {[%emt 0:00:11]} Qg6 {[%emt 0:00:03]} 17. Kh1 {[%emt 0:00:31]} Bf5 {[%emt 0:00:15]} 18. Ne1 {[%emt 0:00:03]} Nd4 {[%emt 0:02:33]} 19. Nxc7 {[%emt 0:03:02]} Nb3 {[%emt 0:03:02]} 20. Nd5 {[%emt 0:01:15]} Rfe8 {[%emt 0:00:01]} 21. Rb1 {[%emt 0:00:18]} Bd6 {[%emt 0:00:22]} 22. Qe2 {[%emt 0:01:13]} Nd4 {[%emt 0:01:20]} 23. Qd2 {[%emt 0:00:39]} Rb3 {[%emt 0:00:17]} 24. Qa5 {[%emt 0:01:22]} Bxh3 {[%emt 0:02:06]} 25. gxh3 {[%emt 0:00:37]} Qf5 {[%emt 0:00:26]} 26. Kg2 {[%emt 0:00:12]} Qg6+ {[%emt 0:02:25]} 27. Kh2 {[%emt 0:00:01]} e4+ {[%emt 0:00:48]} 28. Bf4 {[%emt 0:00:01]} Ne2 {[%emt 0:01:19]} 29. Bxd6 {[%emt 0:00:51]} Qxd6+ {[%emt 0:00:08]} 30. Kg2 {[%emt 0:00:01]} Qg6+ {[%emt 0:01:14]} 31. Kh2 {[%emt 0:00:01]} Qd6+ {[%emt 0:00:15]} 32. Kg2 {[%emt 0:00:05]} Qg6+ {[%emt 0:00:44]} 1/2-1/2

[Event "FIDE Open World Rapid 2024"]
[Site "New York"]
[Date "2024.12.27"]
[Round "6.39"]
[White "Wong, Hayoung"]
[Black "Blohberger, Felix"]
[Result "0-1"]
[ECO "E10"]
[WhiteElo "1704"]
[BlackElo "2534"]
[Annotator "ChessBase"]
[PlyCount "107"]
[EventDate "2024.12.14"]
[EventType "swiss"]
[EventCountry "USA"]
[SourceTitle "playchess.com"]
[Source "ChessBase"]
[SourceQuality "1"]
[TimeControl "900+10"]

1. d4 {[%emt 0:00:01]} Nf6 {[%emt 0:00:02]} 2. Nf3 {[%emt 0:00:02]} e6 {[%emt 0:00:09]} 3. c4 {[%emt 0:00:02]} h6 {[%emt 0:00:03]} 4. Nc3 {[%emt 0:00:01]} Bb4 {[%emt 0:00:03]} 5. Qc2 {[%emt 0:00:03]} c5 {[%emt 0:00:27]} 6. e3 {[%emt 0:00:15]} cxd4 {[%emt 0:01:34]} 7. exd4 {[%emt 0:00:31]} O-O {[%emt 0:01:06]} 8. Bd3 {[%emt 0:00:03]} d5 {[%emt 0:00:05]} 9. c5 {[%emt 0:00:46]} b6 {[%emt 0:01:26]} 10. a3 {[%emt 0:00:10]} Bxc3+ {[%emt 0:00:10]} 11. Qxc3 {[%emt 0:00:02]} a5 {[%emt 0:01:05]} 12. b4 {[%emt 0:00:01]} Ne4 {[%emt 0:01:16]} 13. Qb2 {[%emt 0:01:50]} bxc5 {[%emt 0:00:45]} 14. dxc5 {[%emt 0:00:14]} Ba6 {[%emt 0:00:19]} 15. Bxa6 {[%emt 0:01:20]} Nxa6 {[%emt 0:00:05]} 16. O-O {[%emt 0:00:32]} Rb8 {[%emt 0:01:07]} 17. Qe2 {[%emt 0:00:38]} Qc8 {[%emt 0:00:04]} 18. Bf4 {[%emt 0:01:15]} Ra8 {[%emt 0:00:47]} 19. Nd2 {[%emt 0:01:01]} axb4 {[%emt 0:00:58]} 20. Nxe4 {[%emt 0:00:21]} dxe4 {[%emt 0:00:03]} 21. Bd6 {[%emt 0:00:18]} Rd8 {[%emt 0:00:35]} 22. axb4 {[%emt 0:00:26]} Nxb4 {[%emt 0:00:06]} 23. Qxe4 {[%emt 0:00:04]} Nd5 {[%emt 0:00:17]} 24. f4 {[%emt 0:01:39]} Rxa1 {[%emt 0:02:34]} 25. Rxa1 {[%emt 0:00:01]} Qc6 {[%emt 0:00:49]} 26. Qa4 {[%emt 0:00:53]} Qxa4 {[%emt 0:00:24]} 27. Rxa4 {[%emt 0:00:01]} f6 {[%emt 0:02:53]} 28. Kf2 {[%emt 0:00:07]} Rd7 {[%emt 0:00:03]} 29. Kf3 {[%emt 0:00:28]} Kf7 {[%emt 0:00:01]} 30. Ra8 {[%emt 0:00:29]} h5 {[%emt 0:00:19]} 31. h3 {[%emt 0:00:15]} Rb7 {[%emt 0:00:33]} 32. Ra3 {[%emt 0:00:24]} Rb1 {[%emt 0:00:11]} 33. Ra7+ {[%emt 0:00:36]} Kg6 {[%emt 0:00:01]} 34. Rd7 {[%emt 0:01:38]} Rb3+ {[%emt 0:00:09]} 35. Kf2 {[%emt 0:00:07]} Rc3 {[%emt 0:00:11]} 36. g4 {[%emt 0:02:38]} Rc2+ {[%emt 0:00:18]} 37. Kf3 {[%emt 0:00:03]} Rc3+ {[%emt 0:00:01]} 38. Kg2 {[%emt 0:00:22]} hxg4 {[%emt 0:00:16]} 39. hxg4 {[%emt 0:00:02]} Ne3+ {[%emt 0:00:05]} 40. Kh3 {[%emt 0:00:48]} Nf5+ {[%emt 0:00:07]} 41. Kh2 {[%emt 0:00:15]} Nh6 {[%emt 0:00:19]} 42. g5 {[%emt 0:00:25]} Ng4+ {[%emt 0:00:11]} 43. Kg2 {[%emt 0:00:00]} Ne3+ {[%emt 0:00:07]} 44. Kf2 {[%emt 0:00:04]} Nf5 {[%emt 0:00:11]} 45. Bf8 {[%emt 0:00:52]} fxg5 {[%emt 0:00:11]} 46. fxg5 {[%emt 0:00:01]} Kxg5 {[%emt 0:00:05]} 47. Bxg7 {[%emt 0:00:03]} Rxc5 {[%emt 0:00:04]} 48. Bf8 {[%emt 0:00:29]} Rc2+ {[%emt 0:00:05]} 49. Kf3 {[%emt 0:00:06]} Rc3+ {[%emt 0:00:04]} 50. Ke2 {[%emt 0:00:07]} Kf4 {[%emt 0:00:15]} 51. Kd2 {[%emt 0:00:30]} Rb3 {[%emt 0:00:20]} 52. Rc7 {[%emt 0:00:09]} e5 {[%emt 0:00:13]} 53. Bg7 {[%emt 0:00:17]} e4 {[%emt 0:00:09]} 54. Ke2 {[%emt 0:00:25]} 0-1